fUST/lending_fUST_20240808
["ID","MTS","AMOUNT","RATE_DAILY","PERIOD"]
[334420934,1723080639428,-1229.94,0.00027897,7]
[334420935,1723080639438,-746.84,0.00027897,7]
[334420936,1723080639450,-1255.95,0.00027897,7]
[334420937,1723080639459,-1939.63,0.00027897,7]
[334420938,1723080639469,-5455.15,0.00027897,7]
[334420939,1723080639478,-784.85,0.00027897,7]
[334420940,1723080639488,-3005.2,0.00027897,7]
[334420941,1723080639497,-927.75,0.00027897,7]
[334420942,1723080639507,-1136.13,0.00027897,7]
[334420943,1723080639516,-579.87,0.00027897,7]
[334420944,1723080639526,-500.0,0.00027897,7]
[334420945,1723080639536,-1371.47,0.00027897,7]
[334420946,1723080639546,-500.0,0.00027897,7]
[334420947,1723080639555,-500.0,0.00027898,7]
[334420948,1723080639565,-500.0,0.00027898,7]
[334420949,1723080639574,-500.0,0.00027898,7]
[334420950,1723080639584,-503.75,0.00027898,7]
[334420951,1723080639593,-1271.52,0.00027898,7]
[334420952,1723080639602,-500.0,0.00027898,7]
[334420953,1723080639612,-500.0,0.00027898,7]
[334420954,1723080639621,-500.0,0.00027898,7]
[334420955,1723080639631,-500.0,0.00027898,7]
[334420956,1723080639640,-376.9651856,0.00027898,7]
[334420957,1723080639650,-500.0,0.00027898,7]
[334420958,1723080639660,-500.0,0.00027898,7]
[334420959,1723080639670,-500.0,0.00027898,7]
[334420960,1723080639679,-500.0,0.00027898,7]
[334420961,1723080639688,-442.59366568,0.00027898,7]
[334420962,1723080639700,-500.0,0.00027898,7]
[334420963,1723080639710,-1104.73,0.00027898,7]
[334420964,1723080639719,-500.0,0.00027898,7]
[334420965,1723080639729,-1385.14,0.00027898,7]
[334420966,1723080639739,-500.0,0.00027898,7]
[334420967,1723080639748,-500.0,0.00027898,7]
[334420968,1723080639758,-500.45600032,0.00027898,7]
[334420969,1723080639767,-739.74,0.00027898,7]
[334420970,1723080639778,-500.0,0.00027898,7]
[334420971,1723080639788,-500.0,0.00027898,7]
[334420972,1723080639797,-751.18,0.00027898,7]
[334420973,1723080639807,-860.98,0.00027898,7]
[334420974,1723080639817,-500.0,0.00027898,7]
[334420975,1723080639826,-540.22347395,0.00027898,7]
[334420976,1723080639836,-524.44,0.00027898,7]
[334420977,1723080639846,-500.0,0.00027898,7]
[334420978,1723080639855,-845.83,0.00027898,7]
[334420979,1723080639865,-520.96738811,0.00027898,7]
[334420980,1723080639875,-1579.11,0.00027898,7]
[334420981,1723080639884,-500.0,0.00027898,7]
[334420982,1723080639893,-500.0,0.00027898,7]
[334420983,1723080639907,-500.97142327,0.00027898,7]
[334420984,1723080639918,-500.0,0.00027898,7]
[334420985,1723080639929,-500.0,0.00027898,7]
[334420986,1723080639939,-500.0,0.00027898,7]
[334420988,1723080639953,-538.74969551,0.00027898,7]
[334420989,1723080639963,-500.0,0.00027898,7]
[334420990,1723080639972,-500.0,0.00027898,7]
[334420991,1723080639984,-646.74,0.00027898,7]
[334420992,1723080639994,-553.87,0.00027898,7]
[334420993,1723080640003,-1152.83,0.00027898,7]
[334420994,1723080640012,-1579.43,0.00027898,7]
[334420995,1723080640022,-354.62789311,0.00027898,7]
[334420996,1723080640033,-667.83,0.00027898,7]
[334420997,1723080640043,-500.0,0.00027898,7]
[334420998,1723080640052,-500.0,0.00027898,7]
[334420999,1723080640063,-500.0,0.00027898,7]
[334421000,1723080640073,-539.23754855,0.00027898,7]
[334421001,1723080640082,-522.25,0.00027898,7]
[334421002,1723080640094,-500.0,0.00027898,7]
[334421003,1723080640103,-500.0,0.00027898,7]
[334421004,1723080640112,-500.0,0.00027898,7]
[334421005,1723080640122,-500.0,0.00027898,7]
[334421006,1723080640132,-580.2,0.00027898,7]
[334421007,1723080640142,-500.0,0.00027898,7]
[334421008,1723080640151,-500.0,0.00027898,7]
[334421009,1723080640160,-500.0,0.00027898,7]
[334421010,1723080640170,-500.0,0.00027898,7]
[334421011,1723080640179,-500.0,0.00027898,7]
[334421012,1723080640189,-500.0,0.00027898,7]
[334421013,1723080640201,-500.0,0.00027898,7]
[334421014,1723080640210,-633.2470924,0.00027898,7]
[334421015,1723080640220,-1382.47,0.00027898,7]
[334421016,1723080640229,-1817.26,0.00027898,7]
[334421017,1723080640239,-500.0,0.00027898,7]
[334421018,1723080640248,-500.0,0.00027898,7]
[334421019,1723080640258,-791.73,0.00027898,7]
[334421020,1723080640267,-500.0,0.00027898,7]
[334421021,1723080640277,-151.0,0.00027898,7]
[334421022,1723080640286,-500.0,0.00027898,7]
[334421023,1723080640296,-151.0,0.00027898,7]
[334421024,1723080640306,-500.0,0.00027898,7]
[334421025,1723080640315,-151.0,0.00027898,7]
[334421026,1723080640325,-500.0,0.00027898,7]
[334421027,1723080640334,-500.0,0.00027898,7]
[334421028,1723080640344,-500.0,0.00027898,7]
[334421029,1723080640353,-474.55475423,0.00027898,7]
[334421030,1723080640362,-500.0,0.00027898,7]
[334421031,1723080640371,-500.0,0.00027898,7]
[334421032,1723080640381,-3982.93,0.00027898,7]
[334421033,1723080640390,-1198.47,0.00027898,7]
[334421034,1723080640400,-500.0,0.00027898,7]
[334421035,1723080640409,-166.92801832,0.00027898,7]
[334421037,1723080640418,-500.0,0.00027898,7]
[334421038,1723080640427,-500.0,0.00027898,7]
[334421039,1723080640437,-500.0,0.00027898,7]
[334421040,1723080640450,-544.64,0.00027898,7]
[334421041,1723080640459,-500.0,0.00027898,7]
[334421042,1723080640468,-500.0,0.00027898,7]
[334421043,1723080640477,-500.0,0.00027898,7]
[334421044,1723080640486,-670.59,0.00027898,7]
[334421045,1723080640496,-754.52,0.00027898,7]
[334421046,1723080640505,-500.0,0.00027898,7]
[334421047,1723080640515,-842.14,0.00027898,7]
[334421048,1723080640524,-1605.91,0.00027898,7]
[334421049,1723080640533,-1176.99,0.00027898,7]
[334421050,1723080640543,-2518.71,0.00027898,7]
[334421051,1723080640553,-678.811636,0.00027898,7]
[334421052,1723080640562,-678.811636,0.00027898,7]
[334421053,1723080640572,-678.811636,0.00027898,7]
[334421054,1723080640581,-678.811636,0.00027898,7]
[334421055,1723080640591,-1098.25,0.00027898,7]
[334421056,1723080640601,-687.56,0.00027898,7]
[334421057,1723080640610,-8787.58,0.00027898,7]
[334421058,1723080640620,-500.0,0.00027898,7]
[334421059,1723080640629,-1956.06,0.00027898,7]
[334421060,1723080640639,-500.0,0.00027898,7]
[334421061,1723080640649,-1044.74,0.00027898,7]
[334421062,1723080640658,-1588.73452137,0.00027898,2]
[334421063,1723080640668,-1355.56,0.00027898,7]
[334421064,1723080640677,-500.0,0.00027898,7]
[334421065,1723080640686,-3217.74,0.00027898,7]
[334421066,1723080640696,-839.5,0.00027898,7]
[334421067,1723080640705,-500.0,0.00027898,7]
[334421068,1723080640714,-500.0,0.00027898,7]
[334421069,1723080640724,-2317.27,0.00027898,7]
[334421070,1723080640734,-500.0,0.00027898,7]
[334421071,1723080640743,-500.0,0.00027898,7]
[334421072,1723080640753,-2000.0,0.00027898,2]
[334421073,1723080640762,-500.0,0.00027899,7]
[334421074,1723080640773,-500.0,0.00027899,7]
[334421076,1723080640790,-500.0,0.00027899,7]
[334421078,1723080640800,-597.2,0.00027899,7]
[334421080,1723080640810,-500.0,0.00027899,7]
[334421082,1723080640820,-500.0,0.00027899,7]
[334421084,1723080640830,-500.0,0.00027899,7]
[334421086,1723080640839,-500.0,0.00027899,7]
[334421087,1723080640849,-500.0,0.00027899,7]
[334421089,1723080640859,-500.0,0.00027899,7]
[334421091,1723080640868,-500.0,0.00027899,7]
[334421093,1723080640878,-500.0,0.00027899,7]
[334421095,1723080640887,-500.0,0.00027899,7]
[334421097,1723080640897,-500.0,0.00027899,7]
[334421099,1723080640907,-500.0,0.00027899,7]
[334421101,1723080640919,-500.0,0.00027899,7]
[334421103,1723080640928,-200.0,0.00027899,7]
[334421105,1723080640938,-500.0,0.00027899,7]
[334421107,1723080640952,-500.0,0.00027899,7]
[334421109,1723080640961,-500.0,0.00027899,7]
[334421111,1723080640970,-500.0,0.00027899,7]
[334421113,1723080640979,-404.20184337,0.00027899,7]
[334421115,1723080640992,-500.0,0.00027899,7]
[334421117,1723080641001,-500.0,0.00027899,7]
[334421119,1723080641011,-642.52398396,0.00027899,7]
[334421121,1723080641020,-500.0,0.00027899,7]
[334421123,1723080641030,-500.0,0.00027899,7]
[334421125,1723080641039,-500.0,0.00027899,7]
[334421127,1723080641050,-500.0,0.00027899,7]
[334421129,1723080641059,-500.0,0.00027899,7]
[334421131,1723080641068,-500.0,0.00027899,7]
[334421132,1723080641078,-500.0,0.00027899,7]
[334421134,1723080641087,-500.0,0.00027899,7]
[334421136,1723080641096,-500.0,0.00027899,7]
[334421138,1723080641106,-500.0,0.00027899,7]
[334421140,1723080641116,-500.0,0.00027899,7]
[334421142,1723080641125,-500.0,0.00027899,7]
[334421144,1723080641138,-1014.66,0.00027899,7]
[334421146,1723080641148,-500.0,0.00027899,7]
[334421147,1723080641157,-500.0,0.00027899,7]
[334421149,1723080641167,-500.0,0.00027899,7]
[334421151,1723080641177,-500.0,0.00027899,7]
[334421153,1723080641186,-504.22,0.00027899,7]
[334421155,1723080641198,-500.68311355,0.00027899,7]
[334421156,1723080641211,-1092.97,0.00027899,7]
[334421158,1723080641220,-500.0,0.00027899,7]
[334421160,1723080641230,-588.36,0.00027899,7]
[334421162,1723080641239,-554.3,0.00027899,7]
[334421164,1723080641249,-500.0,0.00027899,7]
[334421166,1723080641259,-1436.95,0.00027899,7]
[334421168,1723080641269,-601.68,0.00027899,7]
[334421170,1723080641278,-500.0,0.00027899,7]
[334421171,1723080641288,-500.0,0.00027899,7]
[334421173,1723080641297,-500.0,0.00027899,7]
[334421175,1723080641306,-767.66,0.00027899,7]
[334421177,1723080641316,-500.0,0.00027899,7]
[334421179,1723080641326,-500.0,0.00027899,7]
[334421181,1723080641335,-500.0,0.00027899,7]
[334421182,1723080641344,-501.75314947,0.00027899,7]
[334421184,1723080641354,-500.0,0.00027899,7]
[334421185,1723080641364,-643.64,0.00027899,7]
[334421186,1723080641372,-500.0,0.00027899,7]
[334421187,1723080641382,-500.0,0.00027899,7]
[334421188,1723080641391,-500.0,0.00027899,7]
[334421189,1723080641400,-500.0,0.00027899,7]
[334421190,1723080641409,-500.0,0.00027899,7]
[334421191,1723080641419,-500.0,0.00027899,7]
[334421192,1723080641428,-500.0,0.00027899,7]
[334421193,1723080641438,-500.0,0.00027899,7]
[334421194,1723080641450,-500.0,0.00027899,7]
[334421195,1723080641460,-500.0,0.00027899,7]
[334421196,1723080641470,-500.0,0.00027899,7]
[334421197,1723080641479,-500.0,0.00027899,7]
[334421198,1723080641489,-500.25828658,0.00027899,7]
[334421199,1723080641498,-500.0,0.00027899,7]
[334421200,1723080641508,-500.0,0.00027899,7]
[334421201,1723080641519,-500.0,0.00027899,7]
[334421202,1723080641528,-501.15637128,0.00027899,7]
[334421203,1723080641538,-500.0,0.00027899,7]
[334421204,1723080641547,-500.0,0.00027899,7]
[334421205,1723080641557,-500.0,0.00027899,7]
[334421206,1723080641567,-500.0,0.00027899,7]
[334421207,1723080641576,-500.0,0.00027899,7]
[334421208,1723080641586,-500.0,0.00027899,7]
[334421209,1723080641596,-500.0,0.00027899,7]
[334421210,1723080641606,-500.0,0.00027899,7]
[334421211,1723080641615,-500.0,0.00027899,7]
[334421212,1723080641625,-503.66368819,0.00027899,2]
[334421213,1723080641634,-168.40465223,0.00027899,7]
[334421215,1723080641856,-24.0715459,0.00027899,7]
[334421216,1723080641866,-500.0,0.00027899,7]
[334421217,1723080641875,-500.0,0.00027899,7]
[334421218,1723080641885,-500.0,0.00027899,7]
[334421219,1723080641895,-500.0,0.00027899,7]
[334421220,1723080641906,-527.11288338,0.00027899,7]
[334421221,1723080641919,-500.0,0.00027899,7]
[334421222,1723080641928,-500.0,0.00027899,7]
[334421223,1723080641938,-500.0,0.00027899,7]
[334421224,1723080641954,-500.0,0.00027899,7]
[334421225,1723080641964,-500.0,0.00027899,7]
[334421226,1723080641973,-500.0,0.00027899,7]
[334421227,1723080641983,-500.0,0.00027899,7]
[334421228,1723080641994,-500.0,0.00027899,7]
[334421229,1723080642004,-500.0,0.00027899,7]
[334421230,1723080642014,-501.86153908,0.00027899,7]
[334421231,1723080642024,-526.71203819,0.00027899,7]
[334421232,1723080642033,-500.0,0.00027899,7]
[334421233,1723080642042,-500.0,0.00027899,7]
[334421234,1723080642052,-619.12845902,0.00027899,7]
[334421235,1723080642062,-500.0,0.00027899,7]
[334421236,1723080642072,-500.0,0.00027899,7]
[334421237,1723080642081,-500.0,0.00027899,7]
[334421238,1723080642090,-500.0,0.00027899,7]
[334421239,1723080642100,-518.29535683,0.00027899,7]
[334421240,1723080642109,-154.45268599,0.00027899,7]
[334421241,1723080642119,-500.0,0.00027899,7]
[334421242,1723080642129,-500.0,0.00027899,7]
[334421243,1723080642139,-500.0,0.00027899,7]
[334421244,1723080642148,-500.0,0.00027899,5]
[334421245,1723080642157,-523.8019494,0.00027899,7]
[334421246,1723080642167,-500.0,0.00027899,7]
[334421247,1723080642176,-500.0,0.00027899,7]
[334421248,1723080642185,-500.0,0.00027899,7]
[334421249,1723080642200,-556.74644109,0.00027899,7]
[334421250,1723080642210,-1219.83,0.00027899,7]
[334421251,1723080642219,-500.0,0.00027899,7]
[334421252,1723080642228,-500.0,0.00027899,7]
[334421253,1723080642238,-500.0,0.00027899,7]
[334421254,1723080642248,-500.0,0.00027899,7]
[334421255,1723080642257,-405.89083413,0.00027899,7]
[334421256,1723080642267,-500.0,0.00027899,7]
[334421257,1723080642276,-718.88,0.00027899,7]
[334421258,1723080642285,-500.0,0.00027899,7]
[334421259,1723080642294,-500.0,0.00027899,7]
[334421260,1723080642303,-500.0,0.00027899,7]
[334421261,1723080642313,-671.24,0.00027899,7]
[334421262,1723080642322,-500.0,0.00027899,7]
[334421263,1723080642331,-500.0,0.00027899,7]
[334421264,1723080642517,-216.75661438,0.00027899,7]
[334421265,1723080642538,-283.24338562,0.00027899,7]
[334421266,1723080642548,-337.8592295,0.00027899,7]
[334421267,1723080642578,-500.0,0.00027898,7]
[334421268,1723080642588,-510.58,0.00027898,7]
[334421269,1723080642597,-500.0,0.00027898,7]
[334421270,1723080642607,-162.1407705,0.00027899,7]
[334421271,1723080642617,-500.0,0.00027899,7]
[334421272,1723080642627,-1058.92,0.00027899,7]
[334421273,1723080642637,-500.0,0.00027899,7]
[334421274,1723080642646,-500.0,0.00027899,7]
[334421275,1723080642656,-1521.82,0.00027899,7]
[334421276,1723080642666,-500.0,0.00027899,7]
[334421277,1723080642675,-500.0,0.00027899,7]
[334421278,1723080642685,-500.0,0.00027899,7]
[334421279,1723080642698,-616.35998413,0.00027899,7]
[334421280,1723080642708,-500.0,0.00027899,7]
[334421281,1723080642717,-1177.19,0.00027899,7]
[334421282,1723080642727,-500.0,0.00027899,7]
[334421283,1723080642736,-500.0,0.00027899,7]
[334421284,1723080642746,-500.0,0.00027899,7]
[334421285,1723080642755,-500.0,0.00027899,7]
[334421286,1723080642765,-500.0,0.00027899,7]
[334421287,1723080642774,-500.0,0.00027899,7]
[334421288,1723080642784,-500.0,0.00027899,7]
[334421289,1723080642794,-567.22,0.00027899,7]
[334421290,1723080642803,-500.0,0.00027899,7]
[334421291,1723080642813,-500.0,0.00027899,2]
[334421292,1723080642823,-500.0,0.00027899,7]
[334421293,1723080642833,-500.0,0.00027899,7]
[334421294,1723080642842,-542.68015061,0.00027899,7]
[334421295,1723080642851,-502.35556235,0.00027899,7]
[334421296,1723080642863,-565.48,0.00027899,7]
[334421297,1723080642872,-557.5823597,0.00027899,7]
[334421298,1723080642881,-500.0,0.00027899,7]
[334421299,1723080642891,-500.0,0.00027899,7]
[334421300,1723080642905,-499.999999,0.00027899,7]
[334421301,1723080642915,-531.51816542,0.00027899,7]
[334421302,1723080642924,-500.0,0.00027899,7]
[334421303,1723080642934,-500.0,0.00027899,7]
[334421304,1723080642949,-151.0,0.00027899,7]
[334421305,1723080642959,-151.0,0.00027899,7]
[334421306,1723080642969,-151.0,0.00027899,7]
[334421307,1723080642979,-500.0,0.00027899,7]
[334421308,1723080642990,-278.97595133,0.00027899,7]
[334421309,1723080643001,-151.0,0.00027899,7]
[334421311,1723080643011,-151.0,0.00027899,7]
[334421312,1723080643022,-151.0,0.00027899,7]
[334421313,1723080643034,-500.0,0.00027899,7]
[334421314,1723080643044,-209.195549,0.00027899,7]
[334421316,1723080643054,-500.0,0.00027899,7]
[334421317,1723080643064,-500.0,0.00027899,7]
[334421318,1723080643074,-500.0,0.00027899,7]
[334421319,1723080643084,-500.0,0.00027899,7]
[334421320,1723080643093,-504.39698816,0.00027899,7]
[334421321,1723080643103,-500.0,0.00027899,7]
[334421322,1723080643113,-500.0,0.00027899,7]
[334421323,1723080643123,-500.0,0.00027899,7]
[334421324,1723080643132,-500.0,0.00027899,7]
[334421325,1723080643142,-405.7183097,0.00027899,7]
[334421326,1723080643151,-645.55270096,0.00027899,7]
[334421327,1723080643161,-500.0,0.00027899,7]
[334421328,1723080643171,-500.0,0.00027899,7]
[334421329,1723080643181,-500.0,0.00027899,7]
[334421330,1723080643191,-500.0,0.00027899,7]
[334421331,1723080643207,-500.0,0.00027899,7]
[334421332,1723080643218,-500.0,0.00027899,7]
[334421333,1723080643227,-500.0,0.00027899,7]
[334421334,1723080643236,-500.0,0.00027899,7]
[334421335,1723080643246,-500.0,0.00027899,7]
[334421336,1723080643256,-500.0,0.00027899,7]
[334421338,1723080643266,-500.0,0.00027899,7]
[334421343,1723080643277,-500.0,0.00027899,7]
[334421346,1723080643286,-381.21774006,0.00027899,7]
[334421366,1723080643814,-17.70192901,0.0002788,3]
[334421401,1723081345686,203.8637221,0.00014247,2]
[334421404,1723081707890,4000.0,0.000172,4]
[334421405,1723081718376,150.0,0.00025,30]
[334421406,1723081761096,-789.37350469,0.000172,4]
[334421520,1723081839335,-15210.62649531,0.000172,4]
[334421521,1723081839346,-154.9150861,0.00018921,2]
[334421522,1723081839357,-2284.91860404,0.00019177,3]
[334421523,1723081839368,-154.86054764,0.00019477,2]
[334421524,1723081839377,-154.89065542,0.00019547,2]
[334421525,1723081839389,-187.98415753,0.00020999,2]
[334421526,1723081839399,-154.7517803,0.00021,2]
[334421527,1723081839408,-154.81299266,0.00021642,2]
[334421528,1723081839418,-632.89885063,0.00021916,2]
[334421529,1723081839427,-884.84104187,0.0002217,2]
[334421530,1723081839436,-7401.95790744,0.00023221,2]
[334421531,1723081839445,-200.0,0.00026027,2]
[334421532,1723081839454,-2577.28317905,0.00027645,2]
[334421533,1723081839464,-2340.74340627,0.00027698,2]
[334421534,1723081839473,-249.81538806,0.00027699,2]
[334421535,1723081839483,-2340.74340624,0.00027721,2]
[334421536,1723081839493,-2340.74340624,0.00027743,2]
[334421537,1723081839502,-676.68,0.00027765,7]
[334421538,1723081839511,-2340.74340624,0.00027766,2]
[334421539,1723081839520,-432.58,0.00027787,3]
[334421540,1723081839529,-675.4,0.00027787,3]
[334421541,1723081839539,-562.83,0.00027787,3]
[334421542,1723081839548,-2340.74340624,0.00027788,2]
[334421543,1723081839557,-1823.89955934,0.00027788,2]
[334421544,1723081839566,-5494.49057344,0.00027788,3]
[334421545,1723081839576,-5494.49057344,0.00027789,3]
[334421546,1723081839589,-5494.49057344,0.00027789,3]
[334421547,1723081839601,-5494.49057344,0.0002779,3]
[334421548,1723081839610,-2000.0,0.00027797,2]
[334421549,1723081839619,-740.72,0.00027797,7]
[334421550,1723081839629,-4353.28,0.00027797,7]
[334421551,1723081839638,-500.0,0.00027797,2]
[334421552,1723081839647,-187.78130437,0.00027797,2]
[334421553,1723081839657,-155.72290601,0.00027797,2]
[334421554,1723081839666,-500.0,0.00027797,2]
[334421555,1723081839675,-306.02774596,0.00027797,2]
[334421556,1723081839684,-500.0,0.00027797,7]
[334421557,1723081839693,-9327.32,0.00027797,7]
[334421558,1723081839702,-1394.08,0.00027797,7]
[334421559,1723081839711,-501.60012799,0.00027797,7]
[334421560,1723081839721,-5525.29,0.00027797,7]
[334421561,1723081839731,-2399.97,0.00027797,7]
[334421562,1723081839740,-502.91166621,0.00027797,7]
[334421563,1723081839750,-584.5,0.00027797,7]
[334421564,1723081839759,-2207.57,0.00027797,7]
[334421565,1723081839768,-681.62,0.00027797,7]
[334421566,1723081839778,-1699.3,0.00027797,7]
[334421567,1723081839787,-1438.9,0.00027797,7]
[334421568,1723081839797,-1254.26,0.00027797,7]
[334421569,1723081839807,-582.41,0.00027797,7]
[334421570,1723081839817,-3506.67,0.00027797,7]
[334421571,1723081839827,-23377.93915745,0.00027798,21]
[334421572,1723081839838,-501.66785388,0.00027798,7]
[334421573,1723081839848,-513.11740964,0.00027798,7]
[334421574,1723081839858,-500.0,0.00027798,7]
[334421575,1723081839867,-500.0,0.00027798,7]
[334421576,1723081839876,-501.49324101,0.00027798,7]
[334421577,1723081839886,-500.0,0.00027798,7]
[334421578,1723081839895,-500.0,0.00027798,7]
[334421579,1723081839904,-500.0,0.00027798,7]
[334421580,1723081839914,-500.0,0.00027798,7]
[334421581,1723081839924,-500.0,0.00027798,7]
[334421582,1723081839934,-502.33797079,0.00027798,7]
[334421583,1723081839944,-500.0,0.00027798,7]
[334421584,1723081839954,-500.0,0.00027798,7]
[334421585,1723081839966,-502.31641083,0.00027798,7]
[334421586,1723081839976,-504.27297179,0.00027798,7]
[334421587,1723081839988,-572.77,0.00027798,7]
[334421588,1723081839998,-500.0,0.00027798,7]
[334421589,1723081840009,-500.0,0.00027798,7]
[334421590,1723081840020,-791.59,0.00027798,7]
[334421591,1723081840031,-500.0,0.00027798,7]
[334421592,1723081840041,-500.0,0.00027798,7]
[334421593,1723081840051,-500.0,0.00027798,7]
[334421594,1723081840063,-500.0,0.00027798,7]
[334421595,1723081840072,-451.73705685,0.00027798,7]
[334421596,1723081840084,-500.0,0.00027798,7]
[334421597,1723081840094,-406.01573741,0.00027798,7]
[334421598,1723081840103,-2970.43,0.00027798,7]
[334421599,1723081840113,-500.0,0.00027798,7]
[334421601,1723081840122,-2123.8,0.00027798,7]
[334421603,1723081840131,-503.20340676,0.00027798,7]
[334421604,1723081840141,-500.0,0.00027798,7]
[334421605,1723081840150,-501.55399344,0.00027798,7]
[334421606,1723081840159,-501.05860132,0.00027798,7]
[334421607,1723081840168,-500.0,0.00027798,7]
[334421608,1723081840178,-500.0,0.00027798,7]
[334421609,1723081840188,-500.0,0.00027798,7]
[334421610,1723081840198,-2472.78,0.00027798,7]
[334421611,1723081840207,-2183.41,0.00027798,7]
[334421612,1723081840217,-500.0,0.00027798,7]
[334421613,1723081840226,-500.0,0.00027798,7]
[334421614,1723081840235,-500.0,0.00027798,7]
[334421615,1723081840245,-500.0,0.00027798,7]
[334421616,1723081840254,-2922.22,0.00027798,7]
[334421617,1723081840264,-200.0,0.00027798,7]
[334421618,1723081840274,-503.3243461,0.00027798,7]
[334421619,1723081840283,-504.06897648,0.00027798,7]
[334421620,1723081840292,-500.0,0.00027798,7]
[334421621,1723081840302,-500.0,0.00027798,7]
[334421622,1723081840314,-2712.27,0.00027798,7]
[334421623,1723081840323,-500.0,0.00027798,7]
[334421624,1723081840335,-500.0,0.00027798,7]
[334421625,1723081840345,-500.0,0.00027798,7]
[334421626,1723081840355,-503.11197055,0.00027798,7]
[334421627,1723081840364,-1015.22,0.00027798,7]
[334421628,1723081840373,-500.0,0.00027798,7]
[334421629,1723081840382,-14006.21,0.00027798,7]
[334421630,1723081840393,-981.63,0.00027798,7]
[334421631,1723081840402,-502.49036166,0.00027798,7]
[334421632,1723081840412,-500.0,0.00027798,7]
[334421633,1723081840421,-646.08585244,0.00027798,7]
[334421634,1723081840430,-500.0,0.00027798,7]
[334421635,1723081840439,-3777.12,0.00027798,7]
[334421637,1723081840448,-500.0,0.00027798,7]
[334421639,1723081840458,-502.93550051,0.00027798,7]
[334421640,1723081840468,-2472.52,0.00027798,7]
[334421641,1723081840477,-602.0,0.00027798,7]
[334421642,1723081840486,-1231.95,0.00027798,7]
[334421643,1723081840496,-502.71337189,0.00027798,7]
[334421644,1723081840505,-502.02344127,0.00027798,7]
[334421645,1723081840514,-767.72,0.00027798,7]
[334421646,1723081840524,-500.0,0.00027798,7]
[334421647,1723081840533,-501.24612322,0.00027798,7]
[334421648,1723081840542,-500.0,0.00027798,7]
[334421649,1723081840552,-647.21402322,0.00027798,7]
[334421650,1723081840562,-500.0,0.00027798,7]
[334421651,1723081840573,-503.52231645,0.00027798,7]
[334421652,1723081840585,-748.62,0.00027798,7]
[334421653,1723081840597,-500.0,0.00027798,7]
[334421654,1723081840608,-500.0,0.00027798,7]
[334421655,1723081840617,-1234.42,0.00027798,7]
[334421656,1723081840627,-502.40507291,0.00027798,7]
[334421657,1723081840637,-1944.02,0.00027798,7]
[334421658,1723081840646,-502.12073711,0.00027798,7]
[334421659,1723081840657,-501.29670184,0.00027798,7]
[334421660,1723081840667,-501.74726198,0.00027798,7]
[334421661,1723081840677,-504.57026045,0.00027798,7]
[334421662,1723081840688,-500.0,0.00027798,7]
[334421663,1723081840697,-509.25680947,0.00027798,7]
[334421664,1723081840706,-500.0,0.00027798,7]
[334421665,1723081840716,-1258.72,0.00027798,7]
[334421666,1723081840726,-786.68,0.00027798,7]
[334421667,1723081840736,-500.0,0.00027798,7]
[334421668,1723081840746,-504.58,0.00027798,7]
[334421669,1723081840756,-588.7,0.00027798,7]